[Event "CCT Chessable Masters D-III 2024"]
[Site "Online"]
[Date "2024.02.02"]
[Round "1"]
[White "Yoo, Christopher Woojin"]
[Black "Sarana, Alexey"]
[Result "0-1"]
[ECO "B48"]
[WhiteElo "2595"]
[BlackElo "2695"]
[Annotator "RC"]
[PlyCount "224"]
[EventDate "2024.01.12"]
[EventType "k.o."]
[EventCountry "NET"]
[SourceTitle "playchess.com"]
[Source "ChessBase"]
[SourceQuality "1"]
[TimeControl "600+2"]

1. e4 {[%emt 0:00:04]} c5 {[%emt 0:00:05]} 2. Nf3 {[%emt 0:00:03]} e6 {[%emt 0:02:13]} 3. d4 {[%emt 0:00:05]} cxd4 {[%emt 0:00:02]} 4. Nxd4 {[%emt 0:00:02]} Nc6 {[%emt 0:00:03]} 5. Nc3 {[%emt 0:00:03]} Nf6 {[%emt 0:00:08]} 6. a3 {[%emt 0:00:13]} Qc7 {[%emt 0:00:17]} 7. Be3 {[%emt 0:00:14]} a6 {[%emt 0:00:06]} 8. Qf3 {[%emt 0:00:52]} Bd6 {[%emt 0:00:42]} 9. Be2 {[%emt 0:01:14]} Be5 {[%emt 0:00:57]} 10. O-O-O {[%emt 0:00:19]} b5 {[%emt 0:00:46]} 11. Nxc6 {[%emt 0:00:04]} dxc6 {[%emt 0:00:03]} 12. Bc5 {[%emt 0:00:51]} Nd7 {[%emt 0:00:05]} 13. Bd4 {[%emt 0:00:08]} Bxd4 {[%emt 0:00:14]} 14. Rxd4 {[%emt 0:00:02]} e5 {[%emt 0:00:03]} 15. Rd2 {[%emt 0:00:06]} O-O {[%emt 0:00:05]} 16. Qe3 {[%emt 0:00:23]} a5 {[%emt 0:00:04]} 17. Rhd1 {[%emt 0:00:08]} Nf6 {[%emt 0:00:30]} 18. Qc5 {[%emt 0:00:12]} b4 {[%emt 0:00:04]} 19. Nb5 {[%emt 0:00:36]} Qb8 {[%emt 0:00:05]} 20. Nd6 {[%emt 0:00:05]} bxa3 {[%emt 0:00:09]} 21. Qxa3 {[%emt 0:00:05]} Be6 {[%emt 0:00:02]} 22. f3 {[%emt 0:00:09]} a4 {[%emt 0:00:04]} 23. g4 {[%emt 0:00:19]} Nd7 {[%emt 0:00:10]} 24. Bc4 {[%emt 0:00:13]} Bxc4 {[%emt 0:00:04]} 25. Nxc4 {[%emt 0:00:02]} Nb6 {[%emt 0:00:02]} 26. Ne3 {[%emt 0:00:08]} Qc7 {[%emt 0:00:09]} 27. Rd6 {[%emt 0:00:11]} Rfc8 {[%emt 0:00:36]} 28. g5 {[%emt 0:00:11]} Rd8 {[%emt 0:00:07]} 29. h4 {[%emt 0:00:14]} Rxd6 {[%emt 0:00:23]} 30. Qxd6 {[%emt 0:00:28]} Qxd6 {[%emt 0:00:03]} 31. Rxd6 {[%emt 0:00:03]} Rc8 {[%emt 0:00:03]} 32. h5 {[%emt 0:00:09]} Kf8 {[%emt 0:00:18]} 33. Rd3 {[%emt 0:00:15]} Ke7 {[%emt 0:00:21]} 34. Nf5+ {[%emt 0:00:05]} Kf8 {[%emt 0:00:03]} 35. b3 {[%emt 0:00:14]} g6 {[%emt 0:00:04]} 36. hxg6 {[%emt 0:00:09]} hxg6 {[%emt 0:00:02]} 37. Nh6 {[%emt 0:00:05]} Ke7 {[%emt 0:00:05]} 38. bxa4 {[%emt 0:00:08]} Nxa4 {[%emt 0:00:05]} 39. Ra3 {[%emt 0:00:03]} Ra8 {[%emt 0:00:03]} 40. Rb3 {[%emt 0:00:26]} Nc5 {[%emt 0:00:03]} 41. Rc3 {[%emt 0:00:03]} Ra5 {[%emt 0:00:04]} 42. Kd2 {[%emt 0:00:04]} Ke6 {[%emt 0:00:04]} 43. Ke3 {[%emt 0:00:05]} Ke7 {[%emt 0:00:06]} 44. Rc4 {[%emt 0:00:10]} Ne6 {[%emt 0:00:11]} 45. Rxc6 {[%emt 0:00:05]} Nxg5 {[%emt 0:00:03]} 46. c3 {[%emt 0:00:09]} Ne6 {[%emt 0:00:10]} 47. Ng8+ {[%emt 0:00:10]} Kf8 {[%emt 0:00:06]} 48. Nf6 {[%emt 0:00:04]} Kg7 {[%emt 0:00:04]} 49. Nd5 {[%emt 0:00:03]} Ra2 {[%emt 0:00:18]} 50. Nb4 {[%emt 0:00:17]} Ra5 {[%emt 0:00:09]} 51. Nd3 {[%emt 0:00:04]} Kf6 {[%emt 0:00:05]} 52. Rc8 {[%emt 0:00:16]} Ra3 {[%emt 0:00:06]} 53. Nf2 {[%emt 0:00:03]} Ra5 {[%emt 0:00:07]} 54. Rc6 {[%emt 0:00:05]} Ke7 {[%emt 0:00:08]} 55. Rb6 {[%emt 0:00:05]} f5 {[%emt 0:00:03]} 56. exf5 {[%emt 0:00:04]} gxf5 {[%emt 0:00:02]} 57. Nd3 {[%emt 0:00:03]} Kd7 {[%emt 0:00:04]} 58. c4 {[%emt 0:00:09]} Ke7 {[%emt 0:00:03]} 59. Nb4 {[%emt 0:00:05]} Ra3+ {[%emt 0:00:04]} 60. Kf2 {[%emt 0:00:05]} Nd4 {[%emt 0:00:02]} 61. Nd5+ {[%emt 0:00:03]} Kd7 {[%emt 0:00:03]} 62. f4 {[%emt 0:00:05]} exf4 {[%emt 0:00:03]} 63. c5 {[%emt 0:00:05]} Ra2+ {[%emt 0:00:05]} 64. Kf1 {[%emt 0:00:03]} Ra1+ {[%emt 0:00:05]} 65. Kf2 {[%emt 0:00:03]} Ra2+ {[%emt 0:00:03]} 66. Ke1 {[%emt 0:00:03]} Nc2+ {[%emt 0:00:03]} 67. Ke2 {[%emt 0:00:07]} Nb4+ {[%emt 0:00:03]} 68. Kf3 {[%emt 0:00:03]} Nxd5 {[%emt 0:00:03]} 69. Rd6+ {[%emt 0:00:03]} Kc7 {[%emt 0:00:02]} 70. Rxd5 {[%emt 0:00:02]} Ra4 {[%emt 0:00:03]} 71. Rxf5 {[%emt 0:00:03]} Kc6 {[%emt 0:00:02]} 72. Rg5 {[%emt 0:00:03]} Rc4 {[%emt 0:00:03]} 73. Rh5 {[%emt 0:00:02]} Rxc5 {[%emt 0:00:02]} 74. Rh8 {[%emt 0:00:02]} Kb5 {[%emt 0:00:02]} 75. Kxf4 {[%emt 0:00:03]} Rc4+ {[%emt 0:00:02]} 76. Ke5 {[%emt 0:00:03]} Kb4 {[%emt 0:00:02]} 77. Kd5 {[%emt 0:00:02]} Rc5+ {[%emt 0:00:03]} 78. Kd6 {[%emt 0:00:02]} Rc4 {[%emt 0:00:02]} 79. Rb8+ {[%emt 0:00:03]} Kc3 {[%emt 0:00:02]} 80. Rh8 {[%emt 0:00:02]} Rd4+ {[%emt 0:00:02]} 81. Ke5 {[%emt 0:00:02]} Rd3 {[%emt 0:00:03]} 82. Rh4 {[%emt 0:00:03]} Re3+ {[%emt 0:00:02]} 83. Kd5 {[%emt 0:00:02]} Rd3+ {[%emt 0:00:02]} 84. Kc5 {[%emt 0:00:03]} Rf3 {[%emt 0:00:03]} 85. Rc4+ {[%emt 0:00:02]} Kd2 {[%emt 0:00:02]} 86. Rh4 {[%emt 0:00:02]} Ke2 {[%emt 0:00:02]} 87. Kd4 {[%emt 0:00:03]} Rg3 {[%emt 0:00:03]} 88. Rh2+ {[%emt 0:00:03]} Kf3 {[%emt 0:00:03]} 89. Rh6 {[%emt 0:00:02]} Rg4+ {[%emt 0:00:02]} 90. Kd3 {[%emt 0:00:02]} Rg5 {[%emt 0:00:03]} 91. Rf6+ {[%emt 0:00:03]} Kg4 {[%emt 0:00:03]} 92. Rd6 {[%emt 0:00:02]} Ra5 {[%emt 0:00:02]} 93. Rd4+ {[%emt 0:00:02]} Kf5 {[%emt 0:00:03]} 94. Rb4 {[%emt 0:00:02]} Ra3+ {[%emt 0:00:02]} 95. Kc4 {[%emt 0:00:03]} Ra6 {[%emt 0:00:03]} 96. Rb8 {[%emt 0:00:02]} Rc6+ {[%emt 0:00:03]} 97. Kd5 {[%emt 0:00:03]} Rf6 {[%emt 0:00:02]} 98. Re8 {[%emt 0:00:02]} Kg4 {[%emt 0:00:02]} 99. Re5 {[%emt 0:00:03]} Kg3 {[%emt 0:00:03]} 100. Re4 {[%emt 0:00:02]} Rf3 {[%emt 0:00:02]} 101. Re2 {[%emt 0:00:02]} Rf5+ {[%emt 0:00:03]} 102. Ke4 {[%emt 0:00:02]} Rf8 {[%emt 0:00:02]} 103. Re3+ {[%emt 0:00:02]} Kg4 {[%emt 0:00:03]} 104. Rd3 {[%emt 0:00:02]} Re8+ {[%emt 0:00:02]} 105. Kd4 {[%emt 0:00:03]} Rd8+ {[%emt 0:00:02]} 106. Kc3 {[%emt 0:00:02]} Rc8+ {[%emt 0:00:03]} 107. Kd2 {[%emt 0:00:02]} Ra8 {[%emt 0:00:02]} 108. Rd4+ {[%emt 0:00:02]} Kf5 {[%emt 0:00:02]} 109. Rd3 {[%emt 0:00:02]} Ke5 {[%emt 0:00:02]} 110. Rc3 {[%emt 0:00:03]} Kd4 {[%emt 0:00:03]} 111. Rd3+ {[%emt 0:00:02]} Ke4 {[%emt 0:00:02]} 112. Rc3 {[%emt 0:00:02]} Kf4 {[%emt 0:00:02]} 0-1

[Event "CCT Chessable Masters D-III 2024"]
[Site "Online"]
[Date "2024.02.02"]
[Round "1"]
[White "bardiya_Daneshvar"]
[Black "BilodeauA"]
[Result "1/2-1/2"]
[ECO "D37"]
[WhiteElo "2592"]
[BlackElo "2614"]
[Annotator "ChessBase"]
[PlyCount "36"]
[EventDate "2024.01.12"]
[EventType "k.o."]
[EventCountry "NET"]
[SourceTitle "playchess.com"]
[Source "ChessBase"]
[SourceQuality "1"]
[TimeControl "600+2"]

1. d4 {[%emt 0:00:02]} Nf6 {[%emt 0:00:04]} 2. c4 {[%emt 0:00:01]} e6 {[%emt 0:00:01]} 3. Nf3 {[%emt 0:00:00]} d5 {[%emt 0:00:04]} 4. Nc3 {[%emt 0:00:01]} Nbd7 {[%emt 0:00:04]} 5. Qc2 {[%emt 0:00:01]} Bb4 {[%emt 0:00:04]} 6. g3 {[%emt 0:00:03]} O-O {[%emt 0:00:26]} 7. Bg2 {[%emt 0:00:02]} Ne4 {[%emt 0:00:04]} 8. O-O {[%emt 0:00:07]} Bxc3 {[%emt 0:00:03]} 9. bxc3 {[%emt 0:00:03]} Nb6 {[%emt 0:00:02]} 10. c5 {[%emt 0:01:34]} Nc4 {[%emt 0:00:01]} 11. Ne1 {[%emt 0:00:01]} f5 {[%emt 0:01:12]} 12. Nd3 {[%emt 0:00:16]} b6 {[%emt 0:00:04]} 13. Rb1 {[%emt 0:00:29]} a5 {[%emt 0:00:42]} 14. f3 {[%emt 0:01:32]} Nf6 {[%emt 0:00:02]} 15. Qa4 {[%emt 0:00:05]} Bd7 {[%emt 0:00:27]} 16. Qc2 {[%emt 0:01:04]} Bc8 {[%emt 0:00:02]} 17. Qa4 {[%emt 0:00:02]} Bd7 {[%emt 0:00:03]} 18. Qc2 {[%emt 0:00:01]} Bc8 {[%emt 0:00:33]} 1/2-1/2

[Event "CCT Chessable Masters D-III 2024"]
[Site "Online"]
[Date "2024.02.02"]
[Round "1"]
[White "Lysyj, Igor"]
[Black "Dreev, Aleksey"]
[Result "1-0"]
[ECO "E11"]
[WhiteElo "2589"]
[BlackElo "2606"]
[Annotator "ChessBase"]
[PlyCount "57"]
[EventDate "2024.01.12"]
[EventType "k.o."]
[EventCountry "NET"]
[SourceTitle "playchess.com"]
[Source "ChessBase"]
[SourceQuality "1"]
[TimeControl "600+2"]

1. d4 {[%emt 0:00:10]} d5 {[%emt 0:00:04]} 2. c4 {[%emt 0:00:01]} e6 {[%emt 0:00:01]} 3. Nf3 {[%emt 0:00:02]} Nf6 {[%emt 0:00:01]} 4. g3 {[%emt 0:00:01]} dxc4 {[%emt 0:00:02]} 5. Bg2 {[%emt 0:00:01]} Bb4+ {[%emt 0:00:02]} 6. Bd2 {[%emt 0:00:04]} a5 {[%emt 0:00:01]} 7. Qc2 {[%emt 0:00:02]} b6 {[%emt 0:00:56]} 8. O-O {[%emt 0:00:05]} O-O {[%emt 0:00:08]} 9. Rd1 {[%emt 0:00:10]} Bb7 {[%emt 0:00:16]} 10. Bg5 {[%emt 0:00:12]} Nbd7 {[%emt 0:00:51]} 11. Ne5 {[%emt 0:01:22]} Bxg2 {[%emt 0:01:48]} 12. Kxg2 {[%emt 0:00:03]} Qc8 {[%emt 0:00:00]} 13. Qxc4 {[%emt 0:00:50]} Nxe5 {[%emt 0:00:54]} 14. dxe5 {[%emt 0:00:02]} Qb7+ {[%emt 0:00:01]} 15. f3 {[%emt 0:00:09]} b5 {[%emt 0:00:12]} 16. Qc2 {[%emt 0:00:38]} Nd5 {[%emt 0:00:09]} 17. e4 {[%emt 0:01:01]} Be7 {[%emt 0:00:02]} 18. exd5 {[%emt 0:00:02]} Bxg5 {[%emt 0:00:01]} 19. Nc3 {[%emt 0:00:26]} exd5 {[%emt 0:00:15]} 20. h4 {[%emt 0:00:14]} Bd8 {[%emt 0:00:35]} 21. Nxd5 {[%emt 0:00:05]} c6 {[%emt 0:00:19]} 22. Ne3 {[%emt 0:01:07]} Re8 {[%emt 0:00:17]} 23. Qe4 {[%emt 0:00:27]} Be7 {[%emt 0:00:57]} 24. Rac1 {[%emt 0:00:13]} Rac8 {[%emt 0:00:02]} 25. e6 {[%emt 0:00:57]} Rcd8 {[%emt 0:01:46]} 26. exf7+ {[%emt 0:00:31]} Kxf7 {[%emt 0:00:00]} 27. Qxh7 {[%emt 0:00:11]} Bf6 {[%emt 0:00:37]} 28. Ng4 {[%emt 0:00:06]} Re2+ {[%emt 0:00:34]} 29. Kh3 {[%emt 0:00:02]} 1-0

[Event "CCT Chessable Masters D-III 2024"]
[Site "Online"]
[Date "2024.02.02"]
[Round "1"]
[White "stSecond"]
[Black "Deac, Bogdan-Daniel"]
[Result "1-0"]
[ECO "D00"]
[WhiteElo "2554"]
[BlackElo "2690"]
[Annotator "TA"]
[PlyCount "75"]
[EventDate "2024.01.12"]
[EventType "k.o."]
[EventCountry "NET"]
[SourceTitle "playchess.com"]
[Source "ChessBase"]
[SourceQuality "1"]
[TimeControl "600+2"]

{[%evp 9,75,0,0,-1,0,0,9,-6,-12,-9,-10,-13,-14,-16,-6,-25,-22,-30,0,0,0,0,0,0,12,0,0,-25,-16,-43,-46,-46,-49,-37,-34,-37,-28,-54,0,-18,-14,-56,-25,-35,0,0,43,43,408,218,635,610,576,579,917,892,797,478,467,482,454,428,551,486,652,570,702,697]} 1. d4 {[%emt 0:00:04]} Nf6 {[%emt 0:00:04]} 2. Bg5 {[%emt 0:00:01]} d5 {[%emt 0:00:01]} 3. Bxf6 {[%emt 0:00:01]} exf6 {[%emt 0:00:03]} 4. e3 {[%emt 0:00:02]} Be6 {[%emt 0:00:07]} 5. Nd2 {[%emt 0:00:20]} c6 {[%emt 0:00:16]} 6. Ne2 {[%emt 0:00:16]} Bd6 {[%emt 0:00:17]} 7. g3 {[%emt 0:00:01]} Qb6 {[%emt 0:00:38]} 8. Rb1 {[%emt 0:00:13] The position is equal.} Nd7 {[%emt 0:00:49]} 9. Nf4 {[%emt 0:00:56]} Bxf4 {[%emt 0:00:48]} 10. gxf4 {[%emt 0:00:00]} f5 {[%emt 0:00:01]} 11. c3 {[%emt 0:02:53]} O-O {[%emt 0:00:22]} 12. Qh5 {[%emt 0:00:46]} Nf6 {[%emt 0:01:31]} 13. Qh4 {[%emt 0:00:01]} Qd8 {[%emt 0:00:08]} 14. Rg1 {[%emt 0:00:36]} g6 {[%emt 0:01:47]} 15. Nf3 {[%emt 0:00:24]} Kg7 {[%emt 0:00:45]} 16. Bd3 {[%emt 0:00:23]} Qe7 {[%emt 0:00:30]} 17. Ng5 {[%emt 0:00:41][%cal Og5h7]} Rae8 {[%emt 0:00:09]} 18. Qh3 {[%emt 0:00:17]} Rh8 {[%emt 0:00:34]} 19. Rg2 {[%emt 0:00:44]} Ne4 {[%emt 0:00:24]} 20. Nf3 {[%emt 0:01:13]} f6 {[%emt 0:00:16]} 21. Ke2 {[%emt 0:00:05]} Qf8 {[%emt 0:00:26]} 22. Rbg1 {[%emt 0:00:09]} Kf7 {[%emt 0:00:01]} 23. Nd2 {[%emt 0:00:11]} Ke7 {[%emt 0:00:13]} (23... c5 $15) 24. Nb3 {[%emt 0:00:08]} b6 {[%emt 0:00:07]} 25. Rc1 {[%emt 0:00:03]} Kd7 {[%emt 0:00:09]} 26. Rgg1 {[%emt 0:00:08]} g5 {[%emt 0:00:20]} (26... Kc7 {simplifies} 27. Qf1 Rg8 28. f3 Nd6) 27. c4 $1 {[%emt 0:00:10]} dxc4 {[%emt 0:00:04]} 28. Bxc4 {[%emt 0:00:01]} Qd6 {[%emt 0:00:01][%mdl 8192] Loses the game.} ({Black should play} 28... Bxc4+ $14 29. Rxc4 g4) 29. Bxe6+ {[%emt 0:00:05]} (29. d5 $142 cxd5 30. Bb5+ Kd8 31. Nd4) 29... Qxe6 $2 {[%emt 0:00:01] [#]} (29... Kxe6 30. d5+ (30. f3 g4 $16) 30... Qxd5) 30. d5 $1 $18 {[%emt 0:00:02][%mdl 512] White is clearly winning.} Qf7 {[%emt 0:00:07]} 31. Qxf5+ {[%emt 0:00:05]} Kd8 {[%emt 0:00:01]} 32. Rxc6 {[%emt 0:00:03] Strongly threatening Rgc1.} Qd7 {[%emt 0:00:00]} 33. Qxd7+ {[%emt 0:00:02]} Kxd7 {[%emt 0:00:01]} 34. fxg5 {[%emt 0:00:01]} fxg5 {[%emt 0:00:03]} 35. Rgc1 {[%emt 0:00:01]} Rhf8 {[%emt 0:00:03]} 36. f3 {[%emt 0:00:02]} Nd6 {[%emt 0:00:01]} 37. Rc7+ {[%emt 0:00:03]} Kd8 {[%emt 0:00:00]} 38. Nd4 {[%emt 0:00:02] Against Rf5.   Weighted Error Value: White=0.38/Black=0.52.  Loses game:     	---       	Black=1      Mistake:       	White=1     	Black=2      Inaccurate:     	White=3     	Black=5      OK:         	White=6     	Black=11     Strong:       	White=1     	---        Brilliant:      	White=1     	---} 1-0

[Event "CCT Chessable Masters D-III 2024"]
[Site "Online"]
[Date "2024.02.02"]
[Round "1"]
[White "kpio91"]
[Black "rasmussvane"]
[Result "1-0"]
[ECO "C65"]
[WhiteElo "2418"]
[BlackElo "2611"]
[Annotator "NA"]
[PlyCount "129"]
[EventDate "2024.01.12"]
[EventType "k.o."]
[EventCountry "NET"]
[SourceTitle "playchess.com"]
[Source "ChessBase"]
[SourceQuality "1"]
[TimeControl "600+2"]

1. e4 {[%emt 0:00:04]} e5 {[%emt 0:00:08]} 2. Nf3 {[%emt 0:00:03]} Nc6 {[%emt 0:00:03]} 3. Bb5 {[%emt 0:00:03]} Nf6 {[%emt 0:00:03]} 4. d3 {[%emt 0:00:04]} Bc5 {[%emt 0:00:03]} 5. Bxc6 {[%emt 0:00:04]} dxc6 {[%emt 0:00:02]} 6. Nbd2 {[%emt 0:00:20]} Be6 {[%emt 0:00:07]} 7. h3 {[%emt 0:00:11]} Nd7 {[%emt 0:00:07]} 8. Nf1 {[%emt 0:00:02]} f6 {[%emt 0:00:09]} 9. Be3 {[%emt 0:00:06]} Qe7 {[%emt 0:00:09]} 10. Qe2 {[%emt 0:00:03]} O-O-O {[%emt 0:00:06]} 11. Bxc5 {[%emt 0:00:54]} Nxc5 {[%emt 0:00:17]} 12. Ne3 {[%emt 0:00:03]} Bf7 {[%emt 0:00:39]} 13. Nf5 {[%emt 0:00:07]} Qf8 {[%emt 0:00:03]} 14. Qe3 {[%emt 0:00:08]} Kb8 {[%emt 0:00:25]} 15. g4 {[%emt 0:00:32]} Ne6 {[%emt 0:00:05]} 16. O-O-O {[%emt 0:00:02]} c5 {[%emt 0:00:41]} 17. Kb1 {[%emt 0:00:51]} Nd4 {[%emt 0:00:43]} 18. N3xd4 {[%emt 0:00:32]} cxd4 {[%emt 0:00:02]} 19. Qd2 {[%emt 0:00:00]} g6 {[%emt 0:00:59]} 20. Ng3 {[%emt 0:00:05]} Rd6 {[%emt 0:00:45]} 21. Ne2 {[%emt 0:00:19]} Rb6 {[%emt 0:01:10]} 22. c4 {[%emt 0:02:14]} dxc3 {[%emt 0:00:02]} 23. Nxc3 {[%emt 0:00:05]} Qb4 {[%emt 0:00:03]} 24. Qc2 {[%emt 0:00:17]} Rd8 {[%emt 0:00:08]} 25. Rhf1 {[%emt 0:00:09]} g5 {[%emt 0:00:05]} 26. Rc1 {[%emt 0:00:57]} a6 {[%emt 0:00:16]} 27. Rfd1 {[%emt 0:00:14]} Ka7 {[%emt 0:00:12]} 28. Ka1 {[%emt 0:00:18]} Rdd6 {[%emt 0:00:10]} 29. Qe2 {[%emt 0:00:30]} Rdc6 {[%emt 0:00:13]} 30. Nb1 {[%emt 0:01:03]} Qa5 {[%emt 0:00:39]} 31. Na3 {[%emt 0:00:02]} Qb4 {[%emt 0:00:59]} 32. Nc4 {[%emt 0:00:08]} Rb5 {[%emt 0:00:13]} 33. Rc3 {[%emt 0:00:04]} Bxc4 {[%emt 0:00:42]} 34. dxc4 {[%emt 0:00:03]} Rbc5 {[%emt 0:00:01]} 35. a3 {[%emt 0:00:09]} Qa4 {[%emt 0:00:07]} 36. Rdc1 {[%emt 0:00:10]} Rd6 {[%emt 0:00:01]} 37. Ka2 {[%emt 0:00:07]} Rd4 {[%emt 0:00:04]} 38. f3 {[%emt 0:00:03]} Qd7 {[%emt 0:00:06]} 39. R1c2 {[%emt 0:00:02]} Rc6 {[%emt 0:00:04]} 40. c5 {[%emt 0:00:03]} Re6 {[%emt 0:00:10]} 41. Rc4 {[%emt 0:00:05]} Rd1 {[%emt 0:00:13]} 42. c6 {[%emt 0:00:03]} Rxc6 {[%emt 0:00:01]} 43. Rxc6 {[%emt 0:00:01]} bxc6 {[%emt 0:00:01]} 44. Rxc6 {[%emt 0:00:03]} Qxc6 {[%emt 0:00:02]} 45. Qxd1 {[%emt 0:00:02]} a5 {[%emt 0:00:05]} 46. Qd3 {[%emt 0:00:03]} a4 {[%emt 0:00:03]} 47. Kb1 {[%emt 0:00:01]} h6 {[%emt 0:00:01]} 48. Qc2 {[%emt 0:00:02]} Qd7 {[%emt 0:00:05]} 49. Qc5+ {[%emt 0:00:01]} Kb7 {[%emt 0:00:00]} 50. Kc2 {[%emt 0:00:00]} Ka6 {[%emt 0:00:02]} 51. Qc4+ {[%emt 0:00:02]} Kb6 {[%emt 0:00:01]} 52. b3 {[%emt 0:00:03]} axb3+ {[%emt 0:00:01]} 53. Qxb3+ {[%emt 0:00:01]} Ka7 {[%emt 0:00:01]} 54. Qc4 {[%emt 0:00:02]} Kb6 {[%emt 0:00:01]} 55. Kc3 {[%emt 0:00:03]} c5 {[%emt 0:00:02]} 56. Qb3+ {[%emt 0:00:02]} Ka5 {[%emt 0:00:02]} 57. Qd5 {[%emt 0:00:04]} Qc7 {[%emt 0:00:05]} 58. Kc4 {[%emt 0:00:01]} Ka4 {[%emt 0:00:08]} 59. Qa8+ {[%emt 0:00:02]} Qa5 {[%emt 0:00:01]} 60. Qxa5+ {[%emt 0:00:01]} Kxa5 {[%emt 0:00:00]} 61. Kxc5 {[%emt 0:00:00]} Ka4 {[%emt 0:00:00]} 62. Kd6 {[%emt 0:00:01]} Kxa3 {[%emt 0:00:01]} 63. Ke6 {[%emt 0:00:00]} Kb4 {[%emt 0:00:00]} 64. Kxf6 {[%emt 0:00:00]} Kc4 {[%emt 0:00:01]} 65. Kxe5 {[%emt 0:00:01]} 1-0

[Event "CCT Chessable Masters D-III 2024"]
[Site "Online"]
[Date "2024.02.02"]
[Round "1"]
[White "Sethu Madhav Upadhyayula"]
[Black "youngKID"]
[Result "0-1"]
[ECO "B32"]
[WhiteElo "1502"]
[BlackElo "2544"]
[Annotator "ChessBase"]
[PlyCount "86"]
[EventDate "2024.01.12"]
[EventType "k.o."]
[EventCountry "NET"]
[SourceTitle "playchess.com"]
[Source "ChessBase"]
[SourceQuality "1"]
[TimeControl "600+2"]

1. e4 {[%emt 0:00:04]} c5 {[%emt 0:00:10]} 2. Nf3 {[%emt 0:00:01]} Nc6 {[%emt 0:00:01]} 3. d4 {[%emt 0:00:02]} cxd4 {[%emt 0:00:01]} 4. Nxd4 {[%emt 0:00:00]} e5 {[%emt 0:00:05]} 5. Nb5 {[%emt 0:00:04]} d6 {[%emt 0:00:02]} 6. c4 {[%emt 0:00:26]} g6 {[%emt 0:00:30]} 7. N1c3 {[%emt 0:00:04]} a6 {[%emt 0:00:01]} 8. Na3 {[%emt 0:00:02]} Nf6 {[%emt 0:00:14]} 9. Nc2 {[%emt 0:00:16]} Be6 {[%emt 0:00:12]} 10. Be2 {[%emt 0:00:03]} Bg7 {[%emt 0:00:10]} 11. Be3 {[%emt 0:00:14]} Rc8 {[%emt 0:00:17]} 12. O-O {[%emt 0:00:32]} Na5 {[%emt 0:01:27]} 13. b3 {[%emt 0:00:30]} b5 {[%emt 0:00:52]} 14. Nd5 {[%emt 0:00:19]} Bxd5 {[%emt 0:00:59]} 15. exd5 {[%emt 0:00:03]} bxc4 {[%emt 0:00:38]} 16. b4 {[%emt 0:00:03]} Nb7 {[%emt 0:00:01]} 17. Na3 {[%emt 0:00:02]} a5 {[%emt 0:00:24]} 18. Nxc4 {[%emt 0:00:41]} axb4 {[%emt 0:00:05]} 19. Nb6 {[%emt 0:00:45]} Rb8 {[%emt 0:01:20]} 20. Qa4+ {[%emt 0:00:12]} Kf8 {[%emt 0:00:21]} 21. Qxb4 {[%emt 0:00:05]} Nc5 {[%emt 0:00:18]} 22. Bxc5 {[%emt 0:00:53]} dxc5 {[%emt 0:00:00]} 23. Qxc5+ {[%emt 0:00:01]} Kg8 {[%emt 0:00:01]} 24. Rab1 {[%emt 0:00:31]} Ne4 {[%emt 0:01:12]} 25. Qe3 {[%emt 0:00:17]} Nd6 {[%emt 0:00:19]} 26. Nc4 {[%emt 0:02:56]} Nf5 {[%emt 0:00:23]} 27. Qa7 {[%emt 0:00:50]} Ra8 {[%emt 0:00:04]} 28. Qb7 {[%emt 0:00:04]} Bf6 {[%emt 0:00:29]} 29. Bd3 {[%emt 0:00:05]} Nd4 {[%emt 0:00:13]} 30. Nd6 {[%emt 0:00:13]} Be7 {[%emt 0:00:08]} 31. Nc4 {[%emt 0:00:18]} Rxa2 {[%emt 0:00:02]} 32. Nxe5 {[%emt 0:00:04]} Kg7 {[%emt 0:00:03]} 33. Bc4 {[%emt 0:00:06]} Rc2 {[%emt 0:00:02]} 34. d6 {[%emt 0:00:08]} Qxd6 {[%emt 0:00:01]} 35. Nxf7 {[%emt 0:00:01]} Qf6 {[%emt 0:00:05]} 36. Nxh8 {[%emt 0:00:02]} Rxc4 {[%emt 0:00:01]} 37. Rfe1 {[%emt 0:00:03]} Nc6 {[%emt 0:00:01]} 38. Rb6 {[%emt 0:00:04]} Kxh8 {[%emt 0:00:01]} 39. h3 {[%emt 0:00:05]} Rc2 {[%emt 0:00:03]} 40. Rf1 {[%emt 0:00:05]} Bc5 {[%emt 0:00:01]} 41. Qc8+ {[%emt 0:00:04]} Kg7 {[%emt 0:00:03]} 42. Rb7+ {[%emt 0:00:02]} Kh6 {[%emt 0:00:01]} 43. Qd7 {[%emt 0:00:05]} Ne7 {[%emt 0:00:04]} 0-1